fUSD/lending_fUSD_20251231
["ID","MTS","AMOUNT","RATE_DAILY","PERIOD"]
[400173837,1767168817116,-10000.01,0.00012985,2]
[400173838,1767168817319,282.044959,0.00043205,50]
[400173839,1767168817488,-10000.01,0.00012985,2]
[400173840,1767168817627,-10000.01,0.00012985,2]
[400173841,1767168817720,282.044959,0.00043205,50]
[400173842,1767168817935,-10000.01,0.00012985,2]
[400173843,1767168818045,282.044959,0.00043205,50]
[400173844,1767168818173,-10000.01,0.00012985,2]
[400173845,1767168818426,282.044959,0.00043205,50]
[400173846,1767168818542,151.0,0.00043205,50]
[400173847,1767168818623,-10000.01,0.00012985,2]
[400173848,1767168818753,282.044959,0.00043205,50]
[400173849,1767168818829,-10000.01,0.00012985,2]
[400173850,1767168818902,151.0,0.00043205,50]
[400173851,1767168819057,282.044959,0.00043205,50]
[400173852,1767168819182,-10000.01,0.00012985,2]
[400173853,1767168819270,151.0,0.00043205,50]
[400173854,1767168819383,282.044959,0.00043205,50]
[400173855,1767168819468,151.0,0.00043205,50]
[400173856,1767168819598,282.044959,0.00043205,50]
[400173857,1767168819988,151.0,0.00043205,50]
[400173858,1767168820089,282.044959,0.00043205,50]
[400173859,1767168820180,151.0,0.00043205,50]
[400173860,1767168820277,282.044959,0.00043205,50]
[400173861,1767168820379,151.0,0.00043205,50]
[400173862,1767168820519,282.044959,0.00043205,50]
[400173863,1767168820745,151.0,0.00043205,50]
[400173864,1767168820837,282.044959,0.00043205,50]
[400173865,1767168821032,151.0,0.00043205,50]
[400173866,1767168821119,151.0,0.00043205,50]
[400173867,1767168821199,282.044959,0.00043205,50]
[400173868,1767168821336,151.0,0.00043205,50]
[400173869,1767168821452,167.325498,0.00043205,50]
[400173870,1767168821544,282.044959,0.00043205,50]
[400173871,1767168821691,151.0,0.00043205,50]
[400173872,1767168821767,282.044959,0.00043205,50]
[400173873,1767168822149,216.702316,0.00043205,50]
[400173874,1767168822230,282.044958,0.00043205,50]
[400173875,1767168822270,-300.0,0.00012985,2]
[400173876,1767168824358,-167.40329297,0.00012985,2]
[400173877,1767168826880,-163.14635088,0.00012985,2]
[400173878,1767168828890,-183.97002739,0.00012985,2]
[400173881,1767168852266,-259.24786967,0.00012984,2]
[400173882,1767168853016,500.0,0.00043205,120]
[400173883,1767168854216,151.0,0.00043205,50]
[400173884,1767168854418,153.603293,0.00043205,50]
[400173886,1767168861381,151.0,0.00043205,50]
[400173887,1767168861754,151.0,0.00043205,50]
[400173888,1767168862073,151.0,0.00043205,50]
[400173889,1767168862385,173.085085,0.00043205,50]
[400173890,1767168865257,-40.75213033,0.00012984,2]
[400173891,1767168865286,-379.24786967,0.00012985,2]
[400173892,1767168865635,153.016044,0.00043205,50]
[400173893,1767168869225,151.0,0.00043205,50]
[400173894,1767168869841,177.296553,0.00043205,50]
[400173895,1767168871244,162.864383,0.00043205,50]
[400173896,1767168871967,170.58236,0.00043205,50]
[400173897,1767168875755,151.0,0.00043205,50]
[400173898,1767168876048,158.374982,0.00043205,50]
[400173899,1767168886948,166.948075,0.00043205,50]
[400173913,1767168914392,188.803288,0.00043205,50]
[400173925,1767168919859,169.40652,0.00043205,50]
[400173926,1767168921701,151.0,0.00043205,50]
[400173927,1767168922037,151.0,0.00043205,50]
[400173928,1767168922337,151.0,0.00043205,50]
[400173929,1767168922662,151.0,0.00043205,50]
[400173930,1767168922949,151.0,0.00043205,50]
[400173931,1767168923237,183.129783,0.00043205,50]
[400173955,1767168933672,151.0,0.00043205,50]
[400173956,1767168934034,151.0,0.00043205,50]
[400173957,1767168934323,151.0,0.00043205,50]
[400173958,1767168934676,151.0,0.00043205,50]
[400173959,1767168934982,151.0,0.00043205,50]
[400173960,1767168935543,151.0,0.00043205,50]
[400173961,1767168935656,151.0,0.00043205,50]
[400173962,1767168936080,151.0,0.00043205,50]
[400173963,1767168936401,151.0,0.00043205,50]
[400173964,1767168936614,218.199867,0.00043205,50]
[400173965,1767168936697,151.0,0.00043205,50]
[400173966,1767168936994,151.0,0.00043205,50]
[400173969,1767168937427,151.0,0.00043205,50]
[400173979,1767168937702,151.0,0.00043205,50]
[400173980,1767168937934,511.69521,0.00043205,50]
[400173981,1767168938009,151.0,0.00043205,50]
[400173982,1767168938222,511.69521,0.00043205,50]
[400173983,1767168938298,151.0,0.00043205,50]
[400173984,1767168938531,511.69521,0.00043205,50]
[400173985,1767168938611,151.0,0.00043205,50]
[400173986,1767168938821,511.69521,0.00043205,50]
[400173987,1767168938898,151.0,0.00043205,50]
[400173988,1767168939133,159.551209,0.00043205,50]
[400173992,1767168939219,511.69521,0.00043205,50]
[400173998,1767168939386,151.0,0.00043205,50]
[400174001,1767168939465,511.69521,0.00043205,50]
[400174002,1767168939672,237.702889,0.00043205,50]
[400174003,1767168939845,511.69521,0.00043205,50]
[400174004,1767168940134,511.69521,0.00043205,50]
[400174005,1767168940438,511.69521,0.00043205,50]
[400174006,1767168940806,511.69521,0.00043205,50]
[400174007,1767168941131,511.69521,0.00043205,50]
[400174008,1767168941273,151.0,0.00043205,30]
[400174009,1767168941456,511.69521,0.00043205,50]
[400174010,1767168941587,250.38681,0.00043205,30]
[400174011,1767168941743,511.69521,0.00043205,50]
[400174012,1767168942061,511.69521,0.00043205,50]
[400174016,1767168942182,-186.43058011,0.00012885,2]
[400174018,1767168942209,-13.83944271,0.00012885,2]
[400174024,1767168942365,511.69521,0.00043205,50]
[400174025,1767168942824,511.69521,0.00043205,50]
[400174026,1767168943156,511.69521,0.00043205,50]
[400174027,1767168943496,511.69521,0.00043205,50]
[400174028,1767168943811,511.69521,0.00043205,50]
[400174029,1767168944118,511.695202,0.00043205,50]
[400174032,1767168944287,-226.57934152,0.00012885,2]
[400174040,1767168946237,-235.31482456,0.00012885,2]
[400174044,1767168948978,-675.55,0.00012885,2]
[400174046,1767168951562,-161.99344713,0.00012885,2]
[400174049,1767168954096,-165.58825374,0.00012885,2]
[400174055,1767168964590,500.0,0.00043205,120]
[400174059,1767168970653,500.0,0.00043205,120]
[400174060,1767168971641,-178.50987786,0.00012885,2]
[400174064,1767168974388,-293.00786757,0.00012885,2]
[400174066,1767168978177,-192.71827511,0.00012885,2]
[400174068,1767168981699,151.0,0.00043205,50]
[400174069,1767168982128,-189.76889679,0.00012885,2]
[400174070,1767168984018,167.454714,0.00043205,50]
[400174071,1767168984733,-294.80368648,0.00012885,2]
[400174072,1767168984765,-6.21219684,0.00012983,2]
[400174073,1767168986332,-200.0,0.00012983,2]
[400174074,1767168989821,151.0,0.00043205,50]
[400174075,1767168990179,151.0,0.00043205,50]
[400174076,1767168990568,151.0,0.00043205,50]
[400174077,1767168991131,151.0,0.00043205,50]
[400174078,1767168991225,151.0,0.00043205,50]
[400174079,1767168991543,151.0,0.00043205,50]
[400174080,1767168991880,151.0,0.00043205,50]
[400174081,1767168992061,151.0,0.00043205,50]
[400174082,1767168992372,151.0,0.00043205,50]
[400174083,1767168992671,169.576171,0.00043205,50]
[400174084,1767168993370,151.0,0.00043205,50]
[400174085,1767168993742,225.079174,0.00043205,50]
[400174086,1767168994548,168.10482,0.00043205,50]
[400174087,1767168996884,151.0,0.00043205,50]
[400174088,1767168997163,243.739377,0.00043205,50]
[400174089,1767168999687,-93.78780316,0.00012983,2]
[400174090,1767168999713,-307.1820303,0.00012984,2]
[400174091,1767169004287,-329.67079238,0.00012885,2]
[400174092,1767169007327,179.38878,0.00043205,50]
[400174093,1767169007662,-260.602803,0.00012885,2]
[400174094,1767169009843,-231.55522864,0.00012885,2]
[400174095,1767169011895,700.22277983,0.00043205,30]
[400174096,1767169013082,-459.66479157,0.00012885,2]
[400174097,1767169015877,-169.0957973,0.00012885,2]
[400174098,1767169022461,-185.8161668,0.00012885,2]
[400174099,1767169022489,-300.0,0.00012983,2]
[400174100,1767169022516,-7.17740416,0.00012984,2]
[400174102,1767169028505,500.0,0.00043205,120]
[400174103,1767169031682,-280.37481203,0.00012984,2]
[400174104,1767169031707,-189.28379422,0.00012984,2]
[400174105,1767169033887,-110.71620578,0.00012984,2]
[400174106,1767169033912,-53.80424608,0.00012984,2]
[400174107,1767169036298,-487.5372,0.00012984,2]
[400174108,1767169047170,151.0,0.00043205,50]
[400174109,1767169047203,-243.20052214,0.00012919,2]
[400174110,1767169047465,152.090919,0.00043205,50]
[400174111,1767169049275,-458.81781897,0.00012919,2]
[400174112,1767169050253,151.0,0.00043205,50]
[400174113,1767169050527,151.0,0.00043205,50]
[400174114,1767169050842,151.0,0.00043205,50]
[400174115,1767169051123,151.0,0.00043205,50]
[400174116,1767169051453,151.0,0.00043205,50]
[400174117,1767169051758,159.904672,0.00043205,50]
[400174118,1767169052490,-211.45180362,0.00012919,2]
[400174119,1767169056412,-166.81349127,0.00012919,2]
[400174120,1767169058529,-229.86321288,0.00012919,2]
[400174121,1767169066200,-214.41218115,0.00012919,2]
[400174122,1767169068764,-121.14308397,0.00012919,2]
[400174123,1767169068795,-78.4019628,0.00012984,2]
[400174125,1767169072112,-299.28773384,0.00012984,2]
[400174126,1767169074254,-197.39193956,0.00012984,2]
[400174129,1767169089926,500.0,0.00043205,120]
[400174130,1767169090576,500.0,0.00043205,120]
[400174132,1767169092388,-150.0,0.00012983,2]
[400174134,1767169092423,-8.11137897,0.00012983,2]
[400174135,1767169094013,-165.51901003,0.00012983,2]
[400174137,1767169095783,-159.38825297,0.00012983,2]
[400174138,1767169097904,-166.98135803,0.00012983,2]
[400174139,1767169097936,-243.76698111,0.00012983,2]
[400174141,1767169099965,-4.3920175,0.00012983,2]
[400174142,1767169099992,-356.1549256,0.00012983,2]
[400174143,1767169103932,-381.555229,0.00012983,2]
[400174153,1767169107006,-320.00237996,0.00012983,2]
[400174154,1767169108263,-142.28746544,0.00012983,2]
[400174155,1767169108285,-297.22352533,0.00012984,2]
[400174156,1767169108307,-300.0,0.00012984,2]
[400174157,1767169108329,-83.57691772,0.00012984,2]
[400174158,1767169108351,-9176.91209151,0.00012984,2]
[400174159,1767169109199,-10000.0,0.00012984,2]
[400174160,1767169109764,-10000.0,0.00012984,2]
[400174161,1767169110221,-10000.0,0.00012984,2]
[400174162,1767169111730,-10000.0,0.00012984,2]
[400174168,1767169112243,-10000.0,0.00012984,2]
[400174175,1767169112815,-10000.0,0.00012984,2]
[400174179,1767169113221,-10000.0,0.00012984,2]
[400174180,1767169113782,-10000.0,0.00012984,2]
[400174181,1767169114534,-10000.0,0.00012984,2]
[400174182,1767169114721,-10000.0,0.00012984,2]
[400174183,1767169115136,-172.04565836,0.00012984,2]
[400174184,1767169115243,-10000.0,0.00012984,2]
[400174185,1767169115774,-3861.11329863,0.00012984,2]
[400174186,1767169115804,-6138.88670137,0.00012985,2]
[400174187,1767169116478,-10000.0,0.00012985,2]
[400174188,1767169116573,-236.31408483,0.00012985,2]
[400174189,1767169117340,-1954.678661,0.00012919,2]
[400174190,1767169117370,-8045.321339,0.00012985,2]
[400174191,1767169118129,-10000.0,0.00012985,2]
[400174192,1767169119158,-10000.0,0.00012985,2]
[400174193,1767169119623,-224.27345533,0.00012985,2]
[400174194,1767169120157,-10000.0,0.00012985,2]
[400174195,1767169121645,-326.16296859,0.00012985,2]
[400174197,1767169127921,-6481.0,0.00012985,2]
[400174208,1767169136853,-159.852783,0.00012885,2]
[400174209,1767169136886,-377.00298481,0.00012975,2]
[400174210,1767169139418,-264.31997141,0.00012975,2]
[400174212,1767169140982,-265.79197358,0.00012975,2]
[400174214,1767169143363,-300.0,0.00012974,2]
[400174215,1767169143391,-76.6312636,0.00012975,2]
[400174216,1767169144879,-293.67423551,0.00012975,2]
[400174217,1767169146415,-253.64662541,0.00012975,2]
[400174220,1767169148927,500.0,0.00043205,120]
[400174221,1767169149696,-262.74402043,0.00012975,2]
[400174222,1767169153787,-152.86532469,0.00012785,2]
[400174223,1767169155423,-334.67187531,0.00012785,2]
[400174224,1767169155461,-116.32812469,0.00012975,2]
[400174225,1767169156687,500.0,0.00043205,120]
[400174226,1767169166716,-164.14110938,0.00012975,2]
[400174227,1767169170490,-186.94892859,0.00012975,2]
[400174228,1767169174692,-346.0670622,0.00012975,2]
[400174229,1767169177036,-379.19939708,0.00012975,2]
[400174230,1767169178650,-317.17398551,0.00012975,2]
[400174231,1767169180212,-269.77531679,0.00012975,2]
[400174232,1767169184925,-267.90004059,0.00012975,2]
[400174233,1767169187705,-180.18223329,0.00012975,2]
[400174234,1767169190778,-467.85726347,0.00012975,2]
[400174235,1767169193529,-172.47088229,0.0001291,2]
[400174236,1767169195072,-198.09561381,0.0001291,2]
[400174242,1767169211563,500.0,0.00043205,120]
[400174243,1767169211660,-220.53530355,0.00012885,2]
[400174244,1767169213661,-213.53229645,0.00012885,2]
[400174245,1767169213691,-12.29338901,0.0001291,2]
[400174246,1767169214449,500.0,0.00043205,120]
[400174270,1767169261573,500.0,0.00043205,120]
[400174273,1767169269017,500.0,0.00043205,120]
[400174274,1767169269613,500.0,0.00043205,120]
[400174276,1767169271651,-374.05568031,0.00012809,2]
[400174277,1767169273185,-151.03,0.00012809,2]
[400174278,1767169293286,707.827,0.00012725,2]
[400174280,1767169311010,-988.79050469,0.00012809,2]
[400174281,1767169311089,-613.27971139,0.00012874,2]
[400174282,1767169311180,-613.27971139,0.0001288,2]
[400174283,1767169311267,-613.27971139,0.00012885,2]
[400174284,1767169312293,-3634.92372228,0.000129,2]
[400174285,1767169312410,-10000.01,0.000129,2]
[400174286,1767169312505,-3095.42944341,0.000129,2]
[400174287,1767169312584,-3809.15111318,0.000129,2]
[400174288,1767169312594,-256.0,0.0001291,2]
[400174289,1767169312608,-1200.0,0.00012974,2]
[400174290,1767169312617,-300.0,0.00012974,2]
[400174291,1767169312627,-300.0,0.00012974,2]
[400174292,1767169312637,-1039.42944341,0.00012975,2]
[400174293,1767169312707,-10000.01,0.00012975,2]
[400174294,1767169312775,-4760.78357493,0.00012975,2]
[400174295,1767169312786,-171.10036562,0.00012984,2]
[400174296,1767169312796,-150.0,0.00012984,2]
[400174297,1767169321359,300.0,0.00012984,2]
[400174298,1767169322292,854.59332901,0.00012984,2]
[400174300,1767169327279,2402.21280539,0.00012954,2]
[400174301,1767169332646,500.0,0.00043196,120]
[400174302,1767169332816,151.0,0.00012977,2]
[400174303,1767169333408,151.0,0.00012977,2]
[400174304,1767169333717,500.0,0.00043196,120]
[400174305,1767169334040,151.0,0.00012977,2]
[400174306,1767169334678,236.7016539,0.00012977,2]
[400174307,1767169342965,374.05568,0.0001292,2]
[400174308,1767169348866,597.0978,0.00043196,120]
[400174320,1767169388748,500.0,0.00043196,120]
[400174321,1767169391694,-159.85278297,0.00012954,2]
[400174322,1767169391719,-6.80721703,0.00012984,2]
[400174323,1767169393241,-201.15117636,0.00012984,2]
[400174325,1767169396491,-151.69,0.00012984,2]
[400174326,1767169398647,-268.0,0.00012984,2]
[400174327,1767169400131,-166.66,0.00012984,2]
[400174328,1767169400647,500.0,0.00043196,120]
[400174329,1767169400839,2000.0,0.00043196,120]
[400174330,1767169401148,500.0,0.00043196,120]
[400174331,1767169401330,157.64210851,0.00043196,120]
[400174332,1767169401685,315.91313865,0.00043196,120]
[400174395,1767169436729,-377.91227787,0.00012954,2]
[400174396,1767169438868,-213.60054963,0.00012954,2]
[400174397,1767169440343,-286.11407827,0.00012954,2]
[400174398,1767169441892,-203.44747085,0.00012954,2]
[400174401,1767169443653,-225.32135981,0.00012954,2]
[400174402,1767169451110,500.0,0.00043196,120]
[400174403,1767169451687,-153.7373739,0.000129,2]
[400174404,1767169455487,-190.20455927,0.000129,2]
[400174405,1767169456943,-215.00547981,0.000129,2]
[400174406,1767169459124,-410.58755797,0.000129,2]
[400174407,1767169462329,-57.44074299,0.000129,2]
[400174408,1767169462356,-140.4015726,0.00012954,2]
[400174410,1767169464502,-44.44842277,0.00012954,2]
[400174411,1767169464527,-268.63846667,0.00012984,2]
[400174412,1767169470432,-137.05313994,0.00012984,2]
[400174413,1767169470462,-182.78144382,0.00012984,2]
[400174415,1767169476068,-117.21855618,0.00012984,2]
[400174416,1767169476094,-150.0,0.00012984,2]
[400174417,1767169476118,-227.40672175,0.00012984,2]
[400174418,1767169478876,-182.34796988,0.00012984,2]
[400174419,1767169480661,-223.7392808,0.00012884,2]
[400174420,1767169482744,-342.9528579,0.00012884,2]
[400174421,1767169486100,-175.92842549,0.00012884,2]
[400174422,1767169488877,-42.1203799,0.00012884,2]
[400174423,1767169488901,-213.7111902,0.00012984,2]
[400174424,1767169488931,-190.91840058,0.00012985,2]
[400174425,1767169491673,-369.77900279,0.00012985,2]
[400174426,1767169493764,-153.72,0.00012985,2]
[400174427,1767169495726,-193.66464589,0.00012985,2]
[400174428,1767169498977,-203.86,0.00012985,2]
[400174432,1767169502656,-171.15624172,0.00012885,2]
[400174433,1767169504653,-266.50708799,0.00012885,2]
[400174434,1767169506154,-178.24211257,0.00012885,2]
[400174437,1767169511088,-355.92758402,0.00012885,2]
[400174438,1767169513655,-218.40995586,0.00012885,2]
[400174439,1767169513843,500.0,0.00043196,120]
[400174440,1767169514464,500.0,0.00043196,120]
[400174441,1767169516836,-336.01279608,0.00012885,2]
[400174442,1767169518979,-207.4122511,0.00012885,2]
[400174443,1767169519927,10000.01,9e-05,2]
[400174444,1767169520014,544.05011221,9e-05,2]
[400174445,1767169521136,-171.47555375,0.00012885,2]
[400174446,1767169525011,-319.47994353,0.00012885,2]
[400174447,1767169525638,1025.62390604,0.000108,2]
[400174448,1767169526377,-2818.24527338,0.00012885,2]
[400174450,1767169526477,-300.0,0.00012934,2]
[400174451,1767169526574,-1200.0,0.00012984,2]
[400174452,1767169526661,-300.0,0.00012984,2]
[400174454,1767169527322,-403.23602683,0.00012985,2]
[400174455,1767169529294,-300.0,0.00012985,2]
[400174456,1767169531849,-166.66,0.00012985,2]
[400174457,1767169534880,-250.0,0.00012985,2]
[400174458,1767169535362,169.42023227,0.00012835,2]
[400174459,1767169536520,-259.00579205,0.00012985,2]
[400174460,1767169538571,-240.27207393,0.00012985,2]
[400174466,1767169540772,-257.45117937,0.00012985,2]
[400174467,1767169544899,-233.76509833,0.00012985,2]
[400174468,1767169561328,10000.01,8e-05,2]
[400174469,1767169561417,10000.01,8e-05,2]
[400174470,1767169561499,3530.42982406,8e-05,2]
[400174471,1767169561929,500.0,0.00043196,120]
[400174472,1767169562106,-300.0,0.00012984,2]
[400174473,1767169563626,-200.27976133,0.00012985,2]
[400174474,1767169565075,6469.58017594,0.00011,2]
[400174475,1767169565155,2933.94178331,0.00011,2]
[400174476,1767169567139,-176.88943954,0.00012985,2]
[400174477,1767169569122,-335.22943184,0.00012985,2]
[400174478,1767169571247,-238.3378692,0.00012985,2]
[400174479,1767169571350,500.0,0.00043196,120]
[400174480,1767169572678,-221.92360409,0.00012985,2]
[400174481,1767169573793,151.0,0.00043196,120]
[400174482,1767169575410,-253.15861808,0.00012985,2]
[400174483,1767169576889,-198.16501142,0.00012985,2]
[400174484,1767169577955,2993.17782669,0.00043196,30]
[400174485,1767169578186,3204.75160781,0.00043196,30]
[400174486,1767169579490,-574.7156495,0.00012985,2]
[400174487,1767169581037,-185.69,0.00012985,2]
[400174488,1767169583406,-168.26156098,0.00012985,2]
[400174489,1767169586127,-512.37073526,0.00012985,2]
[400174490,1767169588818,-177.91265073,0.00012985,2]
[400174491,1767169590915,-153.74930566,0.00012985,2]
[400174492,1767169593104,-161.05259991,0.00012985,2]
[400174493,1767169594550,-229.22521654,0.00012985,2]
[400174494,1767169596087,-305.4077139,0.00012985,2]
[400174495,1767169598330,11710.0,0.00043196,102]
[400174496,1767169598579,1529.379772,0.0001292,2]
[400174497,1767169598655,-188.83753862,0.00012985,2]
[400174498,1767169601329,-315.51067724,0.00012985,2]
[400174499,1767169612935,809.75593,0.0001292,2]
[400174500,1767169617547,-178.1894853,0.00012985,2]
[400174501,1767169619123,-153.65871412,0.00012985,2]
[400174502,1767169621704,-196.34804293,0.00012985,2]
[400174503,1767169622259,300.0,0.00012984,2]
[400174505,1767169622473,150.0,0.00012984,2]
[400174507,1767169628513,151.0,0.00043196,120]
[400174508,1767169628870,151.0,0.00043196,120]
[400174509,1767169629695,1021.0338,0.00012885,2]
[400174510,1767169633645,200.0,0.00043196,120]
[400174515,1767169635973,2130.1833,0.00012885,2]
[400174516,1767169643451,201.28655133,0.00012984,2]
[400174522,1767169651307,194613.60063078,0.00043196,30]
[400174523,1767169660690,3310.23616802,0.00043196,30]
[400174534,1767169671453,3858.37064667,0.00012,2]
[400174535,1767169671530,2075.46106358,0.00012,2]
[400174538,1767169687210,528.196242,0.0001292,2]
[400174540,1767169690340,306.75711296,0.000125,2]
[400174541,1767169691515,167.0,0.00012984,2]
[400174542,1767169692190,151.0,0.00043196,120]
[400174543,1767169692818,151.0,0.00043196,120]
[400174546,1767169703436,4041.51862821,0.00043196,30]
[400174547,1767169706634,8316.24351367,0.00043196,30]
[400174550,1767169718318,4200.57813793,0.00043196,30]
[400174551,1767169718631,3657.08670987,0.00043196,30]
[400174552,1767169719138,482.62557215,0.0001,2]
[400174555,1767169720703,2810.03278045,0.00043196,30]
[400174556,1767169721767,-786.52807802,0.00012985,2]
[400174557,1767169722627,4683.18760444,0.00043196,30]
[400174558,1767169723395,-291.99904632,0.00012985,2]
[400174559,1767169732353,6439.97000931,0.00012975,2]
[400174560,1767169732424,2980.86488133,0.00012975,2]
[400174625,1767169758764,151.0,0.00043196,120]
[400174626,1767169759356,7019.14511867,0.00012885,2]
[400174627,1767169759448,10000.01,0.00012885,2]
[400174628,1767169759535,10000.01,0.00012885,2]
[400174629,1767169759638,10000.01,0.00012885,2]
[400174630,1767169759724,10000.01,0.00012885,2]
[400174631,1767169759815,10000.01,0.00012885,2]
[400174632,1767169760146,10000.01,0.00012885,2]
[400174633,1767169760234,10000.01,0.00012885,2]
[400174634,1767169760323,10000.01,0.00012885,2]
[400174635,1767169760412,10000.01,0.00012885,2]
[400174636,1767169760498,10000.01,0.00012885,2]
[400174637,1767169760589,10000.01,0.00012885,2]
[400174638,1767169760673,10000.01,0.00012885,2]
[400174639,1767169760755,10000.01,0.00012885,2]
[400174640,1767169760852,10000.01,0.00012885,2]
[400174641,1767169760951,151.0,0.00043196,120]
[400174643,1767169761106,-203.86,0.00012885,2]
[400174646,1767169762474,-184.94993181,0.00012885,2]
[400174649,1767169765563,-249.982578,0.00012885,2]
[400174663,1767169797836,-445.82989593,0.00012885,2]
[400174664,1767169801586,1200.0,0.00012884,2]
[400174665,1767169801692,300.0,0.00012884,2]
[400174666,1767169802768,150.0,0.00012884,2]
[400174667,1767169804214,256.0,0.00012884,2]
[400174671,1767169809121,1976.450204,7.945e-05,2]
[400174672,1767169823242,151.0,0.00043196,120]
[400174682,1767169832160,-12883.85545572,0.00012885,2]
[400174684,1767169832172,-2339.23571831,0.00012885,2]
[400174686,1767169832184,-1849.13491146,0.00012885,2]
[400174688,1767169832199,-590.20062203,0.00012885,2]
[400174689,1767169832324,-1334.83598814,0.00012885,2]
[400174690,1767169832336,-888.14621228,0.00012885,2]
[400174691,1767169832347,-292.97700002,0.00012885,2]
[400174692,1767169832359,-575.75,0.00012885,2]
[400174693,1767169832373,-1232.94344881,0.00012885,2]
[400174694,1767169832384,-754.82269806,0.00012885,2]
[400174696,1767169832407,-2031.76104923,0.00012885,2]
[400174697,1767169832419,-6534.74581257,0.00012885,2]
[400174720,1767169838319,-52830.2209683,0.00012885,2]
[400174721,1767169838343,-6769.46469655,0.00012885,2]
[400174722,1767169838369,-72096.80680299,0.00012885,2]
[400174723,1767169838382,-4071.55773437,0.00012885,2]
[400174724,1767169838395,-638.55537377,0.00012885,2]
[400174725,1767169838414,-349.43400439,0.00012885,2]
[400174726,1767169838427,-77893.34753576,0.00012885,2]
[400174727,1767169838444,-1135.30395692,0.00012885,2]
[400174728,1767169838456,-400.0,0.00012885,2]
[400174729,1767169838474,-3341.54631403,0.00012885,2]
[400174946,1767169840884,-601061.44617188,0.00012885,2]
[400174948,1767169840894,-156.70553912,0.00012887,2]
[400174950,1767169840903,-250.0,0.00012987,2]
[400174952,1767169840913,-2161.99152486,0.00012989,2]
[400174954,1767169840923,-2161.99152479,0.00013424,2]
[400174956,1767169840933,-3216.78009113,0.00013533,2]
[400174958,1767169840943,-500.0,0.00013698,2]
[400174960,1767169840953,-500.0,0.00013698,2]
[400174962,1767169840963,-500.0,0.00013698,2]
[400174964,1767169840974,-500.0,0.00013698,2]
[400174966,1767169840983,-1000.0,0.00013825,2]
[400174968,1767169840993,-2161.99152479,0.00013858,2]
[400174970,1767169841003,-431.18,0.00013978,2]
[400174972,1767169841012,-1600.0,0.00013988,2]
[400174974,1767169841022,-24544.30572807,0.0001399,2]
[400174976,1767169841031,-255.0,0.00013992,2]
[400174978,1767169841041,-999.0,0.00014025,3]
[400174981,1767169841051,-420.0,0.00014131,2]
[400174982,1767169841060,-1680.0,0.00014172,2]
[400174985,1767169841070,-300.0,0.00014173,2]
[400174987,1767169841080,-158.54862959,0.00014173,2]
[400174989,1767169841091,-250.0,0.00014173,2]
[400174991,1767169841100,-2500.0,0.00014173,2]
[400174993,1767169841109,-1500.0,0.0001421,2]
[400174995,1767169841119,-150.99,0.0001421,2]
[400174997,1767169841128,-9999.99,0.0001421,2]
[400174999,1767169841138,-156.7055391,0.00014225,2]
[400175001,1767169841148,-299.99,0.00014239,2]
[400175003,1767169841158,-4407.98,0.00014241,2]
[400175005,1767169841167,-2063.07,0.0001425,2]
[400175007,1767169841177,-276.35635289,0.00014283,2]
[400175009,1767169841187,-195.0,0.00014283,2]
[400175011,1767169841197,-250.0,0.00014283,2]
[400175036,1767169841430,-2161.99152479,0.00014293,2]